{"text_format":"3","workbook":"xlsx","n_sheets":1,"sheets":["DANH SÁCH KIỂM KÊ THIẾT BỊ"],"not_rendered":{"defined_names":5},"read":"whole","date_system":"1900"}

{"sheet":"DANH SÁCH KIỂM KÊ THIẾT BỊ","index":0,"n_rows":9,"n_cols":19,"rows_kept":9,"merged":[[0,1,0,5],[0,6,0,9],[0,10,0,12],[0,13,0,14],[2,1,2,6],[2,7,2,18]]}
[null,"DANH SÁCH KIỂM KÊ THIẾT BỊ"]
[]
[null,"ĐIỀU KIỆN THỰC TẾ",{"$nulls":5},"TRẠNG THÁI TÀI CHÍNH"]
[null,"Số sê-ri hoặc mã tài sản","Mô tả mặt hàng (nhãn hiệu và kiểu dáng)","Địa điểm","Tình trạng","Nhà cung cấp","Số năm sử dụng còn lại ","Giá trị ban đầu","Tiền trả trước","Ngày mua hoặc thuê","Kỳ hạn vay tính theo năm","Lãi suất vay","Khoản thanh toán hàng tháng","Chi phí vận hành hàng tháng","Tổng chi phí hàng tháng","Giá trị ước tính tại cuối kỳ hạn vay","Khấu hao đường thẳng hàng năm","Khấu hao đường thẳng hàng tháng","Giá trị hiện tại"]
[null,123,"Nhãn hiệu Kiểu dáng","Chi nhánh chính","Tốt","địa phương",5,{"v":840000000,"d":"840,000,000.00 ₫"},{"v":140000000,"d":"140,000,000.00 ₫"},{"$f":"DATE(YEAR(TODAY())-2, 1,1)","v":"2016-01-01"},4,{"v":0.1,"d":"10.00%"},{"$f":"IFERROR(IF(AND(Dữ_liệu[[#This Row],[Giá trị ban đầu]]>0,Dữ_liệu[[#This Row],[Giá trị ban đầu]]<>Dữ_liệu[[#This Row],[Tiền trả trước]]),-1*PMT(Dữ_liệu[[#This Row],[Lãi suất vay]]/12,Dữ_liệu[[#This Row],[Kỳ hạn vay tính theo năm]]*12,Dữ_liệu[[#This Row],[Giá trị ban đầu]]-Dữ_liệu[[#This Row],[Tiền trả trước]]),0),0)","v":{"v":17753808.40432303,"d":"17,753,808.40 ₫"}},{"v":5600000,"d":"5,600,000.00 ₫"},{"$f":"IFERROR(Dữ_liệu[[#This Row],[Chi phí vận hành hàng tháng]]+Dữ_liệu[[#This Row],[Khoản thanh toán hàng tháng]],\"\")","v":{"v":23353808.40432303,"d":"23,353,808.40 ₫"}},{"v":560000000,"d":"560,000,000.00 ₫"},{"$f":"IFERROR(IF(Dữ_liệu[[#This Row],[Giá trị ban đầu]]>0,SLN(Dữ_liệu[[#This Row],[Giá trị ban đầu]],Dữ_liệu[[#This Row],[Giá trị ước tính tại cuối kỳ hạn vay]],Dữ_liệu[[#This Row],[Số năm sử dụng còn lại ]]),0),0)","v":{"v":56000000,"d":"56,000,000.00 ₫"}},{"$f":"IFERROR(Dữ_liệu[[#This Row],[Khấu hao đường thẳng hàng năm]]/12,0)","v":{"v":4666666.666666667,"d":"4,666,666.67 ₫"}},{"$f":"IFERROR(Dữ_liệu[[#This Row],[Giá trị ban đầu]]-(Dữ_liệu[[#This Row],[Khấu hao đường thẳng hàng năm]]*((TODAY()-Dữ_liệu[[#This Row],[Ngày mua hoặc thuê]])/365)),0)","v":{"v":700383561.6438355,"d":"700,383,561.64 ₫"}}]
[null,456,"Nhãn hiệu Kiểu dáng","Chi nhánh chính","Rất tốt","địa phương",3,{"v":140000000,"d":"140,000,000.00 ₫"},{"v":140000000,"d":"140,000,000.00 ₫"},{"$f":"DATE(YEAR(TODAY())-1, 1,1)","v":"2017-01-01"},null,null,{"$f":"IFERROR(IF(AND(Dữ_liệu[[#This Row],[Giá trị ban đầu]]>0,Dữ_liệu[[#This Row],[Giá trị ban đầu]]<>Dữ_liệu[[#This Row],[Tiền trả trước]]),-1*PMT(Dữ_liệu[[#This Row],[Lãi suất vay]]/12,Dữ_liệu[[#This Row],[Kỳ hạn vay tính theo năm]]*12,Dữ_liệu[[#This Row],[Giá trị ban đầu]]-Dữ_liệu[[#This Row],[Tiền trả trước]]),0),0)","v":{"v":0,"d":"0.00 ₫"}},{"v":560000,"d":"560,000.00 ₫"},{"$f":"IFERROR(Dữ_liệu[[#This Row],[Chi phí vận hành hàng tháng]]+Dữ_liệu[[#This Row],[Khoản thanh toán hàng tháng]],\"\")","v":{"v":560000,"d":"560,000.00 ₫"}},null,{"$f":"IFERROR(IF(Dữ_liệu[[#This Row],[Giá trị ban đầu]]>0,SLN(Dữ_liệu[[#This Row],[Giá trị ban đầu]],Dữ_liệu[[#This Row],[Giá trị ước tính tại cuối kỳ hạn vay]],Dữ_liệu[[#This Row],[Số năm sử dụng còn lại ]]),0),0)","v":{"v":46666666.666666664,"d":"46,666,666.67 ₫"}},{"$f":"IFERROR(Dữ_liệu[[#This Row],[Khấu hao đường thẳng hàng năm]]/12,0)","v":{"v":3888888.8888888885,"d":"3,888,888.89 ₫"}},{"$f":"IFERROR(Dữ_liệu[[#This Row],[Giá trị ban đầu]]-(Dữ_liệu[[#This Row],[Khấu hao đường thẳng hàng năm]]*((TODAY()-Dữ_liệu[[#This Row],[Ngày mua hoặc thuê]])/365)),0)","v":{"v":70447488.58447489,"d":"70,447,488.58 ₫"}}]
[null,789,"Nhãn hiệu Kiểu dáng","Bờ Đông","Khá tốt","địa phương",6,{"v":1400000000,"d":"1,400,000,000.00 ₫"},{"v":560000000,"d":"560,000,000.00 ₫"},{"$f":"TODAY()","v":"2018-06-29"},5,{"v":0.05,"d":"5.00%"},{"$f":"IFERROR(IF(AND(Dữ_liệu[[#This Row],[Giá trị ban đầu]]>0,Dữ_liệu[[#This Row],[Giá trị ban đầu]]<>Dữ_liệu[[#This Row],[Tiền trả trước]]),-1*PMT(Dữ_liệu[[#This Row],[Lãi suất vay]]/12,Dữ_liệu[[#This Row],[Kỳ hạn vay tính theo năm]]*12,Dữ_liệu[[#This Row],[Giá trị ban đầu]]-Dữ_liệu[[#This Row],[Tiền trả trước]]),0),0)","v":{"v":15851836.260969186,"d":"15,851,836.26 ₫"}},{"v":1120000,"d":"1,120,000.00 ₫"},{"$f":"IFERROR(Dữ_liệu[[#This Row],[Chi phí vận hành hàng tháng]]+Dữ_liệu[[#This Row],[Khoản thanh toán hàng tháng]],\"\")","v":{"v":16971836.260969184,"d":"16,971,836.26 ₫"}},{"v":42000000,"d":"42,000,000.00 ₫"},{"$f":"IFERROR(IF(Dữ_liệu[[#This Row],[Giá trị ban đầu]]>0,SLN(Dữ_liệu[[#This Row],[Giá trị ban đầu]],Dữ_liệu[[#This Row],[Giá trị ước tính tại cuối kỳ hạn vay]],Dữ_liệu[[#This Row],[Số năm sử dụng còn lại ]]),0),0)","v":{"v":226333333.33333334,"d":"226,333,333.33 ₫"}},{"$f":"IFERROR(Dữ_liệu[[#This Row],[Khấu hao đường thẳng hàng năm]]/12,0)","v":{"v":18861111.111111112,"d":"18,861,111.11 ₫"}},{"$f":"IFERROR(Dữ_liệu[[#This Row],[Giá trị ban đầu]]-(Dữ_liệu[[#This Row],[Khấu hao đường thẳng hàng năm]]*((TODAY()-Dữ_liệu[[#This Row],[Ngày mua hoặc thuê]])/365)),0)","v":{"v":1400000000,"d":"1,400,000,000.00 ₫"}}]
[{"$nulls":12},{"$f":"IFERROR(IF(AND(Dữ_liệu[[#This Row],[Giá trị ban đầu]]>0,Dữ_liệu[[#This Row],[Giá trị ban đầu]]<>Dữ_liệu[[#This Row],[Tiền trả trước]]),-1*PMT(Dữ_liệu[[#This Row],[Lãi suất vay]]/12,Dữ_liệu[[#This Row],[Kỳ hạn vay tính theo năm]]*12,Dữ_liệu[[#This Row],[Giá trị ban đầu]]-Dữ_liệu[[#This Row],[Tiền trả trước]]),0),0)","v":{"v":0,"d":"0.00 ₫"}},null,{"$f":"IFERROR(Dữ_liệu[[#This Row],[Chi phí vận hành hàng tháng]]+Dữ_liệu[[#This Row],[Khoản thanh toán hàng tháng]],\"\")","v":{"v":0,"d":"0.00 ₫"}},null,{"$f":"IFERROR(IF(Dữ_liệu[[#This Row],[Giá trị ban đầu]]>0,SLN(Dữ_liệu[[#This Row],[Giá trị ban đầu]],Dữ_liệu[[#This Row],[Giá trị ước tính tại cuối kỳ hạn vay]],Dữ_liệu[[#This Row],[Số năm sử dụng còn lại ]]),0),0)","v":{"v":0,"d":"0.00 ₫"}},{"$f":"IFERROR(Dữ_liệu[[#This Row],[Khấu hao đường thẳng hàng năm]]/12,0)","v":{"v":0,"d":"0.00 ₫"}},{"$f":"IFERROR(Dữ_liệu[[#This Row],[Giá trị ban đầu]]-(Dữ_liệu[[#This Row],[Khấu hao đường thẳng hàng năm]]*((TODAY()-Dữ_liệu[[#This Row],[Ngày mua hoặc thuê]])/365)),0)","v":{"v":0,"d":"0.00 ₫"}}]
[{"$nulls":12},{"$f":"IFERROR(IF(AND(Dữ_liệu[[#This Row],[Giá trị ban đầu]]>0,Dữ_liệu[[#This Row],[Giá trị ban đầu]]<>Dữ_liệu[[#This Row],[Tiền trả trước]]),-1*PMT(Dữ_liệu[[#This Row],[Lãi suất vay]]/12,Dữ_liệu[[#This Row],[Kỳ hạn vay tính theo năm]]*12,Dữ_liệu[[#This Row],[Giá trị ban đầu]]-Dữ_liệu[[#This Row],[Tiền trả trước]]),0),0)","v":{"v":0,"d":"0.00 ₫"}},null,{"$f":"IFERROR(Dữ_liệu[[#This Row],[Chi phí vận hành hàng tháng]]+Dữ_liệu[[#This Row],[Khoản thanh toán hàng tháng]],\"\")","v":{"v":0,"d":"0.00 ₫"}},null,{"$f":"IFERROR(IF(Dữ_liệu[[#This Row],[Giá trị ban đầu]]>0,SLN(Dữ_liệu[[#This Row],[Giá trị ban đầu]],Dữ_liệu[[#This Row],[Giá trị ước tính tại cuối kỳ hạn vay]],Dữ_liệu[[#This Row],[Số năm sử dụng còn lại ]]),0),0)","v":{"v":0,"d":"0.00 ₫"}},{"$f":"IFERROR(Dữ_liệu[[#This Row],[Khấu hao đường thẳng hàng năm]]/12,0)","v":{"v":0,"d":"0.00 ₫"}},{"$f":"IFERROR(Dữ_liệu[[#This Row],[Giá trị ban đầu]]-(Dữ_liệu[[#This Row],[Khấu hao đường thẳng hàng năm]]*((TODAY()-Dữ_liệu[[#This Row],[Ngày mua hoặc thuê]])/365)),0)","v":{"v":0,"d":"0.00 ₫"}}]